[Event "44th Chess Olympiad Open 2022"]
[Site "Chennai"]
[Date "2022.08.09"]
[Round "11.8"]
[White "Shevchenko, Kirill"]
[Black "Pultinevicius, Paulius"]
[Result "0-1"]
[ECO "D36"]
[WhiteElo "2654"]
[BlackElo "2539"]
[Annotator "TA"]
[PlyCount "172"]
[EventDate "2022.07.29"]
[EventType "team-tourn"]
[EventCountry "IND"]
[SourceTitle "playchess.com"]
[Source "ChessBase"]
[SourceQuality "1"]
[WhiteTeam "Ukraine"]
[BlackTeam "Lithuania"]
[WhiteTeamCountry "UKR"]
[BlackTeamCountry "LTU"]
[TimeControl "40/5400+30:1800+30"]

{[%evp 18,172,21,22,25,28,20,20,22,17,19,16,8,-3,0,-2,-4,-45,-2,-39,-3,0,16,0,0,11,0,0,46,41,38,40,246,9,21,-18,0,0,0,0,0,0,34,0,0,0,0,0,0,0,0,0,0,0,0,-77,-83,-120,-118,-124,-124,-124,-118,-122,-72,-79,-79,-77,-79,-72,-63,-56,-58,-122,-122,-122,-122,-110,-122,-114,-111,-122,-63,-63,-64,-66,-65,-81,-83,-144,-86,-86,-86,-86,-77,-142,-142,-142,-142,-167,-142,-208,-208,-242,-242,-233,-221,-242,-242,-242,-242,-242,-208,-507,-208,-208,0,-507,-507,-624,-485,-485,-485,-485,-478,-554,-471,-456,-456,-493,-427,-401,-360,-598,-573,-29965,-29968,-29973,-29974,-29974,-29975,-29975,-29976,-29975,-29977,-29977,-29978,-29978,-29979,-29979,-29980,-29980,-29979,-29986,-29987,-29989,-29987]} 1. c4 {[%emt 0:00:02]} e6 {[%emt 0:00:27]} 2. Nc3 {[%emt 0:00:12]} d5 {[%emt 0:00:09]} 3. d4 {[%emt 0:00:04]} Nf6 {[%emt 0:00:25]} 4. cxd5 {[%emt 0:01:27]} exd5 {[%emt 0:00:06]} 5. Bg5 {[%emt 0:00:03]} c6 {[%emt 0:00:05]} 6. e3 {[%emt 0:00:49]} h6 {[%emt 0:00:35]} 7. Bh4 {[%emt 0:00:17]} Be7 {[%emt 0:00:06]} 8. Bd3 {[%emt 0:01:03]} O-O {[%emt 0:00:09]} 9. Qc2 {[%emt 0:04:42]} Re8 {[%emt 0:01:22]} 10. Nge2 {[%emt 0:01:03]} a5 {[%emt 0:00:08] D36: Queen's Gambit Declined: Exchange Variation: Main line (5 Bg5 c6 6 Qc2).} 11. O-O {[%emt 0:06:13]} Na6 {[%emt 0:00:07][%cal Bb8a6,Ba6c7,Bc7e6][%mdl 32]} 12. a3 {[%emt 0:01:17] Inhibits Nb4.} Nc7 {[%emt 0:00:27] The position is equal.} 13. Rae1 {[%emt 0:23:02]} Ne6 {[%emt 0:00:51] [#]} 14. Kh1 $146 {[%emt 0:06:28]} ({Predecessor:} 14. f3 b5 15. Bf2 b4 16. axb4 Bxb4 17. Rc1 c5 18. dxc5 Nxc5 19. Bb5 Bd7 20. Rfd1 Bxb5 21. Nxb5 {1-0 (50) Sarana,A (2689)-Dreev,A (2633) Riga 2021}) 14... b5 {[%emt 0:00:37]} 15. f3 {[%emt 0:06:10]} Ba6 {[%emt 0:15:42]} 16. Bf2 {[%emt 0:15:54]} Qb8 {[%emt 0:00:00]} 17. Bg3 {[%emt 0:18:04]} Qb6 {[%emt 0:00:00]} 18. Bf5 {[%emt 0:01:01]} Bf8 {[%emt 0:06:04]} 19. Rg1 {[%emt 0:05:19]} Qb7 {[%emt 0:07:08]} 20. Nf4 {[%emt 0:01:20]} Nxf4 {[%emt 0:05:41]} 21. Bxf4 {[%emt 0:00:01]} c5 {[%emt 0:00:35]} 22. e4 {[%emt 0:02:00]} dxe4 {[%emt 0:15:45]} (22... g6 $11 {might be stronger.}) 23. Nxe4 $14 {[%emt 0:00:12]} Nd5 {[%emt 0:00:10]} 24. Be5 {[%emt 0:01:50]} c4 {[%emt 0:20:04]} (24... cxd4 $1 $14 25. Bxd4 Qc7) 25. Nc5 $2 {[%emt 0:01:05]} ({White must play} 25. g4 $1 $18 {[%cal Rg4g5]}) 25... Qa7 {[%emt 0:01:18]} 26. Qe4 {[%emt 0:01:07]} (26. Be4 $5 {[%cal Re4d5]} Rad8 27. Bh7+ Kh8 28. Nxa6 Qxa6 29. Be4 $11) 26... Bxc5 {[%emt 0:03:39]} 27. dxc5 {[%emt 0:00:08]} ({Much weaker is} 27. Qxd5 Bb6 $15) 27... Qxc5 {[%emt 0:00:43]} 28. Qg4 {[%emt 0:00:14][%csl Ge5][%cal Rg4g7]} Qf8 {[%emt 0:00:04]} 29. Bb1 {[%emt 0:02:00] This bishop pair is nice.} Bb7 {[%emt 0:02:58]} ({Resist} 29... f6 30. Bg3 Red8 31. Qg6 $16) 30. Qf5 {[%emt 0:01:11][%csl Gb1][%cal Rf5h7]} (30. a4 $5) 30... g6 {[%emt 0:00:12]} 31. Qd7 {[%emt 0:00:03]} Re7 {[%emt 0:00:16]} 32. Qxb5 {[%emt 0:01:26]} Qe8 {[%emt 0:00:23]} 33. Qxe8+ {[%emt 0:00:15]} Raxe8 {[%emt 0:00:05]} 34. Bg3 {[%emt 0:00:02]} Re2 {[%emt 0:10:37]} 35. Ba2 {[%emt 0:01:19]} Ba6 {[%emt 0:01:21]} 36. h4 {[%emt 0:00:29] [#]} (36. Bb1 $11 {remains equal.}) 36... Nf4 $1 $36 {[%emt 0:00:25][%mdl 2048] White is under strong pressure.} 37. Kh2 {[%emt 0:00:36]} (37. Bb1 Nd3) 37... Nd3 {[%emt 0:00:23] 0x0.001f24fa5f45dp-1022s more active pieces.} 38. Rxe2 {[%emt 0:00:20]} Rxe2 {[%emt 0:00:04]} 39. Bb1 {[%emt 0:00:36]} Rxb2 {[%emt 0:02:59]} 40. Rd1 {[%emt 0:00:25]} f6 {[%emt 0:05:44]} (40... a4 $142 41. Bxd3 cxd3) 41. a4 {[%emt 0:06:59]} Kf7 {[%emt 0:07:35][%cal Ob2b1] And now ...Rxb1! would win.} 42. Bxd3 {[%emt 0:01:24]} cxd3 {[%emt 0:00:06][%mdl 4096] Endgame KRB-KRB} 43. Be1 {[%emt 0:00:03]} Ke6 {[%emt 0:00:21]} 44. Bxa5 {[%emt 0:01:27]} Kd5 {[%emt 0:01:21]} 45. Bc3 {[%emt 0:04:43]} ({White should try} 45. Kg3 $15) 45... Rc2 $1 {[%emt 0:00:18]} 46. Bxf6 {[%emt 0:08:38]} d2 {[%emt 0:00:54] Hoping for ...Be2.} 47. Bc3 {[%emt 0:00:06]} Rxc3 {[%emt 0:00:04]} 48. Rxd2+ {[%emt 0:00:02] KRB-KR} Bd3 {[%emt 0:00:19]} 49. Ra2 {[%emt 0:03:14] Prevents Ra3.} Kc4 {[%emt 0:02:49]} (49... Bc4 $17 50. Ra1 Kc6) 50. a5 $15 {[%emt 0:00:36] Threatens to win with a6.} Kb3 {[%emt 0:00:25]} 51. Rd2 {[%emt 0:01:03]} Kb4 {[%emt 0:00:26]} 52. Ra2 {[%emt 0:01:27]} Rc6 {[%emt 0:00:51]} 53. Kg3 {[%emt 0:00:36] [#]} ({White should play} 53. g4) 53... Kb3 {[%emt 0:01:40]} (53... Bc4 $142 $1 {[%cal Rc4a2]} 54. Ra1 Rf6) 54. Ra1 $17 {[%emt 0:00:31][%cal Oh4h5]} Ra6 {[%emt 0:00:22]} 55. Kf4 {[%emt 0:02:28]} Bc2 {[%emt 0:00:16]} 56. Kg3 {[%emt 0:01:17]} (56. g4 $142) 56... Kb2 {[%emt 0:00:06]} 57. Re1 {[%emt 0:00:01]} Rxa5 {[%emt 0:00:09]} 58. Re8 {[%emt 0:00:18]} Kc3 {[%emt 0:00:36]} 59. Rh8 {[%emt 0:01:06]} (59. Rc8+ $17 Kd2 60. Kf2) 59... h5 $19 {[%emt 0:00:06]} 60. Re8 {[%emt 0:02:32]} Kd2 {[%emt 0:00:30]} 61. Kf2 {[%emt 0:00:28]} Ra4 {[%emt 0:01:15] Against g4} 62. Re2+ {[%emt 0:00:33]} Kc3 {[%emt 0:00:05]} 63. Kg3 {[%emt 0:00:13]} Bd3 {[%emt 0:00:08]} 64. Re1 {[%emt 0:00:23]} Ra2 {[%emt 0:00:36]} 65. Rc1+ $2 {[%emt 0:00:30]} (65. Re8 {is a better defense.}) 65... Kd4 {[%emt 0:00:17]} (65... Kd2 $142 66. Rc7 Bf5) 66. Re1 {[%emt 0:00:14]} Kc3 $2 {[%emt 0:00:43]} (66... Bf5 67. Rd1+ Ke5 68. Re1+ Kd5) 67. Rc1+ $1 {[%emt 0:00:09]} Kd2 {[%emt 0:00:05]} 68. Rg1 {[%emt 0:00:54]} Ra4 {[%emt 0:00:42]} 69. Rh1 {[%emt 0:00:06]} Bc2 {[%emt 0:00:45]} 70. Kf2 {[%emt 0:01:29]} Bd1 {[%emt 0:00:10]} 71. Rh3 {[%emt 0:00:19]} Rb4 {[%emt 0:02:33]} 72. Rh1 {[%emt 0:00:15]} Rc4 {[%emt 0:04:21]} 73. Rh3 {[%emt 0:00:23]} Bc2 {[%emt 0:01:01]} 74. Rh1 {[%emt 0:00:13]} Ra4 {[%emt 0:00:35]} 75. Kg3 $2 {[%emt 0:01:23]} (75. g4) 75... Ke2 {[%emt 0:00:13] ( -> ...Bd1)} 76. Rg1 {[%emt 0:00:42]} Bd1 {[%emt 0:00:55] Black mates.} 77. Rh1 {[%emt 0:00:01]} Rb4 {[%emt 0:00:31]} 78. Rg1 {[%emt 0:00:45]} Rb1 {[%emt 0:02:24]} 79. Rh1 {[%emt 0:00:19]} Bc2 {[%emt 0:00:49]} 80. Rxb1 {[%emt 0:02:12]} Bxb1 {[%emt 0:00:05] KB-K3P} 81. Kf4 {[%emt 0:00:00]} Kf2 {[%emt 0:00:47]} 82. g4 {[%emt 0:00:05] [#]} Ba2 $1 {[%emt 0:00:03]} 83. Kg5 {[%emt 0:01:09]} Bf7 {[%emt 0:00:07]} 84. f4 {[%emt 0:00:31]} Kf3 {[%emt 0:00:14]} 85. f5 {[%emt 0:00:42]} hxg4 {[%emt 0:00:10]} 86. fxg6 {[%emt 0:00:17]} Bxg6 {[%emt 0:00:30] Weighted Error Value: White=0.18 (very precise) /Black=0.13 (very precise)} 0-1

[Event "44th Chess Olympiad Open 2022"]
[Site "Chennai"]
[Date "2022.08.09"]
[Round "11.8"]
[White "Stremavicius, Titas"]
[Black "Kuzubov, Yuriy"]
[Result "1/2-1/2"]
[ECO "A13"]
[WhiteElo "2532"]
[BlackElo "2642"]
[Annotator "TA"]
[PlyCount "159"]
[EventDate "2022.07.29"]
[EventType "team-tourn"]
[EventCountry "IND"]
[SourceTitle "playchess.com"]
[Source "ChessBase"]
[SourceQuality "1"]
[WhiteTeam "Lithuania"]
[BlackTeam "Ukraine"]
[WhiteTeamCountry "LTU"]
[BlackTeamCountry "UKR"]
[TimeControl "40/5400+30:1800+30"]

{[%evp 15,159,5,17,0,19,0,10,0,0,0,13,10,0,0,0,20,10,-12,-13,-14,-18,-10,-12,-21,-16,-19,-16,-15,0,0,9,8,12,9,8,8,18,8,9,10,10,12,30,29,30,24,29,8,8,11,57,64,54,35,108,115,114,45,123,105,178,133,189,133,215,215,242,259,250,256,576,562,522,452,474,445,473,473,473,450,472,457,439,459,438,445,490,474,480,456,452,0,436,426,387,250,277,277,277,277,277,106,277,285,285,205,285,285,285,285,285,285,285,285,285,285,285,183,468,285,427,285,313,300,427,100,100,0,0,0,0,0,0,0,0,0,0,0,0,0,0,0,0,0,0,0]} 1. c4 {[%emt 0:00:07]} e6 {[%emt 0:00:07]} 2. g3 {[%emt 0:00:05]} d5 {[%emt 0:00:30]} 3. Nf3 {[%emt 0:00:11]} dxc4 {[%emt 0:02:01]} 4. Qa4+ {[%emt 0:00:51]} Nd7 {[%emt 0:00:04]} 5. Bg2 {[%emt 0:00:10]} Ngf6 {[%emt 0:01:48]} 6. O-O {[%emt 0:00:26]} c5 {[%emt 0:02:29]} 7. Qxc4 {[%emt 0:04:10]} b6 {[%emt 0:01:25]} 8. Nc3 {[%emt 0:20:16]} Bb7 {[%emt 0:00:13]} 9. d3 {[%emt 0:00:18] A13: English Opening: 1...e6.} Bd6 {[%emt 0:01:33]} 10. a4 {[%emt 0:01:46]} O-O {[%emt 0:00:35]} 11. a5 {[%emt 0:06:50] [#]} Bc6 $146 {[%emt 0:09:44]} ({Predecessor:} 11... Nd5 12. Bg5 Be7 13. Bxe7 Qxe7 14. e4 Nb4 15. a6 Bc6 16. d4 cxd4 17. Nxd4 Ne5 18. Nxc6 Nbxc6 {1-0 (31) Baramidze,D (2585)-Sokolov,A (2490) Baden 2016}) 12. Bg5 {[%emt 0:13:45]} Qb8 {[%emt 0:15:54]} 13. Nb5 {[%emt 0:05:37]} Bxb5 {[%emt 0:06:53]} (13... Be5 {feels hotter.} 14. axb6 axb6 15. d4 Bd5) 14. Qxb5 {[%emt 0:00:09]} a6 $1 {[%emt 0:00:03]} 15. Qb3 {[%emt 0:02:37]} b5 {[%emt 0:00:04]} 16. Nd2 {[%emt 0:09:06]} Ra7 {[%emt 0:02:03][%cal Ba8a7,Ba7c7,Bc7c4][%mdl 32]} 17. Ne4 {[%emt 0:00:23]} Nxe4 {[%emt 0:04:44]} 18. Bxe4 {[%emt 0:00:03]} Rc7 {[%emt 0:03:16]} 19. Qc2 {[%emt 0:02:16]} h6 {[%emt 0:01:28]} 20. Bd2 {[%emt 0:00:05]} c4 {[%emt 0:05:48]} 21. dxc4 {[%emt 0:09:52]} Rxc4 {[%emt 0:00:07]} 22. Qb1 {[%emt 0:00:04]} Rfc8 {[%emt 0:05:13]} 23. b3 {[%emt 0:00:59]} R4c7 {[%emt 0:01:14]} 24. Ra2 {[%emt 0:01:50]} Be5 {[%emt 0:06:38]} 25. Rd1 {[%emt 0:02:16]} Nf6 {[%emt 0:00:56]} 26. Bf3 {[%emt 0:00:06]} Nd5 {[%emt 0:09:37]} 27. Bxd5 {[%emt 0:00:38]} exd5 {[%emt 0:00:03]} 28. Qf5 {[%emt 0:00:25]} Rc6 {[%emt 0:02:04]} 29. Be3 {[%emt 0:01:38]} Rf6 {[%emt 0:10:23]} 30. Qg4 {[%emt 0:03:28]} Rg6 {[%emt 0:01:58]} 31. Qh5 {[%emt 0:01:04]} Rc3 $1 {[%emt 0:05:29]} 32. Rxd5 {[%emt 0:11:22]} Rxe3 {[%emt 0:00:15]} 33. fxe3 $14 {[%emt 0:00:09]} Bxg3 {[%emt 0:00:11]} 34. Kh1 {[%emt 0:01:09]} Bf2 {[%emt 0:02:02]} ({Black should play} 34... Bc7 $14) 35. Ra1 $16 {[%emt 0:00:03]} Bxe3 {[%emt 0:00:33]} 36. Qe5 {[%emt 0:01:45]} (36. Rf1 $16) 36... Qxe5 {[%emt 0:00:21]} (36... Qa8 $1 $14) 37. Rxe5 $14 {[%emt 0:00:01][%mdl 4096] Endgame KRR-KRB} Bd4 {[%emt 0:00:09]} (37... Bd2 $16) 38. Re8+ $18 {[%emt 0:00:03]} Kh7 {[%emt 0:00:03]} 39. Rf1 {[%emt 0:00:10]} (39. Rc1 $18) 39... Rc6 {[%emt 0:01:10]} (39... Bc3 $16 {was necessary.} 40. Rxf7 Bxa5) 40. Rxf7 {[%emt 0:01:16]} Rc1+ {[%emt 0:00:44]} 41. Kg2 {[%emt 0:30:04] Strongly threatening Re6.} Rg1+ {[%emt 0:30:08]} 42. Kh3 {[%emt 0:00:09] Hoping for Re6.} Bf6 $2 {[%emt 0:00:28]} (42... Bc3 43. e4 Bxa5) 43. Re6 {[%emt 0:00:00]} Kg6 {[%emt 0:00:00]} 44. Rc7 {[%emt 0:00:00]} b4 {[%emt 0:00:00]} 45. Rc4 {[%emt 0:00:00]} Kh5 {[%emt 0:00:00][%cal Og7g5] Inhibits Rg4.} 46. Rxa6 {[%emt 0:00:00]} g5 {[%emt 0:00:00]} 47. Rxb4 {[%emt 0:02:02]} (47. Rxf6 g4+ 48. Rxg4 Rg3+ 49. Kxg3 $11) 47... Be5 {[%emt 0:00:00]} 48. Re6 {[%emt 0:00:39]} Bc3 {[%emt 0:01:41]} 49. Rb5 {[%emt 0:00:21]} Bxa5 {[%emt 0:00:30]} 50. Re4 {[%emt 0:01:06]} ({Weaker is} 50. Rxa5 Rg3+ 51. Kxg3 $11) 50... Bc7 {[%emt 0:01:08]} 51. Rc4 {[%emt 0:01:05]} Bd6 {[%emt 0:00:35]} 52. Rd5 {[%emt 0:00:04]} Bb8 {[%emt 0:00:37]} 53. Rb5 {[%emt 0:00:06]} Bd6 {[%emt 0:00:20]} 54. b4 {[%emt 0:02:57]} Kg6 {[%emt 0:01:01]} 55. Rb6 {[%emt 0:00:35]} Kh5 {[%emt 0:00:06] [#]} 56. Rh4+ {[%emt 0:00:21][%mdl 512]} gxh4 {[%emt 0:00:05]} 57. Rxd6 {[%emt 0:00:03] KR-KR} Rb1 {[%emt 0:01:19]} 58. Rd5+ $1 {[%emt 0:00:11]} Kg6 {[%emt 0:00:03]} 59. Rd4 $1 {[%emt 0:00:29]} ({Inferior is} 59. Kxh4 Rxb4+ 60. Kh3 Re4 $11) 59... Rb2 {[%emt 0:00:20]} 60. Re4 {[%emt 0:00:21]} ({Less strong is} 60. Rxh4 Rxe2 61. Kg3 Rb2 $14) 60... Kf5 {[%emt 0:01:10]} 61. Rxh4 {[%emt 0:00:12]} Kg5 {[%emt 0:00:38] White must now prevent ...Rb3+.} 62. Rg4+ {[%emt 0:01:36]} Kf5 {[%emt 0:00:08]} 63. e3 $1 {[%emt 0:00:30]} Rb3 {[%emt 0:00:20]} 64. Rf4+ $1 {[%emt 0:00:07]} Ke5 {[%emt 0:00:46]} 65. Rh4 {[%emt 0:01:09]} Rxe3+ {[%emt 0:00:47]} 66. Kg4 {[%emt 0:00:04]} Kd5 $2 {[%emt 0:00:33]} (66... Rb3 {might work better.}) 67. Kf5 {[%emt 0:00:22]} Re5+ {[%emt 0:00:25]} (67... Rb3 $142 68. Rxh6 Rxb4) 68. Kg6 {[%emt 0:00:10] Threatening mate with Rh5.} Re6+ {[%emt 0:00:07]} 69. Kg7 {[%emt 0:00:12]} Rb6 {[%emt 0:00:29] [#]} (69... Re7+ {was worth a try.} 70. Kxh6 Re2) 70. Rg4 $2 {[%emt 0:00:58]} (70. b5 $1 $18 {is the precise move to win.}) 70... Ke5 $16 {[%emt 0:00:31] [#]} 71. h4 {[%emt 0:01:09]} (71. Kf7 $1 $16) 71... Kf5 $11 {[%emt 0:00:27] The position is equal.} 72. Rc4 {[%emt 0:00:06]} h5 {[%emt 0:00:38]} 73. Kf7 {[%emt 0:01:11]} Rb7+ {[%emt 0:00:14]} 74. Ke8 {[%emt 0:00:26]} Ke6 {[%emt 0:00:04] ( -> ...Rb8+)} 75. Kd8 {[%emt 0:00:08]} Kd5 {[%emt 0:00:17]} 76. Rf4 {[%emt 0:00:04]} Ke5 {[%emt 0:00:04]} 77. Rc4 {[%emt 0:00:21] Kc8 is the strong threat.} Kd5 {[%emt 0:00:04]} 78. Rf4 {[%emt 0:01:45]} Ke5 {[%emt 0:00:05]} 79. Kc8 {[%emt 0:00:38]} Rb5 {[%emt 0:00:05]} 80. Rc4 {[%emt 0:00:05] White really could win this.  Weighted Error Value: White=0.20 (precise) /Black=0.17 (very precise)} 1/2-1/2

[Event "44th Chess Olympiad Open 2022"]
[Site "Chennai"]
[Date "2022.08.09"]
[Round "11.8"]
[White "Kazakouski, Valery"]
[Black "Onyshchuk, Volodymyr"]
[Result "1-0"]
[ECO "E90"]
[WhiteElo "2528"]
[BlackElo "2612"]
[Annotator "TA"]
[PlyCount "93"]
[EventDate "2022.07.29"]
[EventType "team-tourn"]
[EventCountry "IND"]
[SourceTitle "playchess.com"]
[Source "ChessBase"]
[SourceQuality "1"]
[WhiteTeam "Lithuania"]
[BlackTeam "Ukraine"]
[WhiteTeamCountry "LTU"]
[BlackTeamCountry "UKR"]
[TimeControl "40/5400+30:1800+30"]

{[%evp 13,93,30,43,9,70,62,67,74,74,63,68,72,88,90,89,43,44,47,56,50,95,103,93,95,106,106,136,144,227,212,226,235,220,224,395,357,386,387,380,388,387,364,420,446,439,389,392,361,484,484,494,473,488,449,600,541,636,629,629,615,859,851,1061,1058,1642,1350,1526,1452,29971,29967,29974,29975,29987,29988,29988,29989,29989,29990,29990,29991,29991,29992]} 1. d4 {[%emt 0:00:04]} Nf6 {[%emt 0:00:06]} 2. c4 {[%emt 0:00:08]} g6 {[%emt 0:00:03]} 3. Nc3 {[%emt 0:00:16]} Bg7 {[%emt 0:00:06]} 4. e4 {[%emt 0:00:08]} d6 {[%emt 0:00:13]} 5. h3 {[%emt 0:00:09]} O-O {[%emt 0:02:17]} 6. Be3 {[%emt 0:00:10]} c6 {[%emt 0:00:24]} 7. Nf3 {[%emt 0:00:27]} Nbd7 {[%emt 0:06:55]} 8. g4 {[%emt 0:08:09] [#] E90: King's Indian: Classical: Early deviations and 6 h3.} c5 $146 {[%emt 0:09:47]} (8... a6 $11) ({Predecessor:} 8... e5 9. d5 cxd5 10. cxd5 Nc5 11. Nd2 a5 12. Rg1 Ne8 13. g5 f5 14. h4 Bd7 15. h5 Rf7 {1-0 (59) Zubarev,A (2544)-Kislinsky,A (2451) Yuzhny 2009}) 9. Bg2 {[%emt 0:03:40]} Ne8 {[%emt 0:25:53]} 10. Qd2 {[%emt 0:07:33] White is slightly better.} Nc7 {[%emt 0:04:01]} 11. Rd1 {[%emt 0:06:03]} b6 {[%emt 0:05:03]} 12. Bh6 {[%emt 0:09:46]} Re8 {[%emt 0:04:31]} 13. Bxg7 {[%emt 0:01:35] White is more active.} Kxg7 {[%emt 0:00:04]} 14. d5 {[%emt 0:09:01]} ({White should try} 14. O-O $16) 14... f6 $14 {[%emt 0:08:42]} 15. h4 {[%emt 0:05:09][%cal Bh3h4,Bh4h5,Bh5h6][%mdl 32]} Rf8 {[%emt 0:13:08]} 16. Ne2 {[%emt 0:04:48]} Ne5 {[%emt 0:02:11] White now steadily converts the win.} 17. Nxe5 {[%emt 0:01:06]} dxe5 {[%emt 0:00:20]} 18. g5 {[%emt 0:01:13]} Qd6 {[%emt 0:01:13][%cal Oh7h6]} 19. h5 {[%emt 0:02:58]} fxg5 {[%emt 0:01:14]} 20. Qxg5 {[%emt 0:01:12]} Qf6 {[%emt 0:00:11] [#]} (20... h6 $16 21. Qxg6+ Qxg6 22. hxg6 Rf6) 21. Qg3 $1 $18 {[%emt 0:02:48]} g5 {[%emt 0:05:51]} 22. h6+ {[%emt 0:04:10]} Kh8 {[%emt 0:00:05]} 23. Rh5 {[%emt 0:01:53]} Rg8 $2 {[%emt 0:01:06]} (23... Ne8 {is a better defense.} 24. Rxg5 Nd6) 24. Rd3 {[%emt 0:01:03] Rf3 is the strong threat.} g4 {[%emt 0:05:53] Inhibits Rf3.} 25. Qxe5 {[%emt 0:01:17]} Ne8 {[%emt 0:00:08]} 26. Qc3 {[%emt 0:04:50]} Qxc3+ {[%emt 0:00:14]} 27. Nxc3 {[%emt 0:00:27]} ({Less strong is} 27. Rxc3 Nf6 28. Re5 Re8 $18) 27... Nd6 {[%emt 0:00:49]} 28. b3 {[%emt 0:01:30]} Rb8 {[%emt 0:03:00]} 29. e5 {[%emt 0:01:28][%cal Be4e5,Be5e6][%mdl 32]} Nf5 {[%emt 0:00:02]} 30. Nb5 {[%emt 0:01:32]} Bd7 {[%emt 0:00:26]} 31. e6 {[%emt 0:03:50]} Bxb5 {[%emt 0:00:06]} 32. Rxf5 {[%emt 0:00:11]} ({Weaker is} 32. cxb5 Rbf8 $11) 32... Be8 {[%emt 0:00:02] [#] And now ...Bg6 would win.} 33. Rg3 {[%emt 0:01:06]} b5 {[%emt 0:00:12]} 34. Rf4 {[%emt 0:01:31]} Bh5 {[%emt 0:00:14]} 35. cxb5 {[%emt 0:00:49]} Rxb5 {[%emt 0:00:06]} 36. f3 {[%emt 0:00:11]} Ra5 {[%emt 0:02:50]} 37. a4 {[%emt 0:05:32]} c4 {[%emt 0:00:03]} 38. fxg4 {[%emt 0:00:16]} cxb3 {[%emt 0:00:07]} 39. Rxb3 {[%emt 0:00:09]} Bxg4 {[%emt 0:00:24]} 40. Kf2 {[%emt 0:00:51]} Rc5 {[%emt 0:01:19]} 41. Be4 {[%emt 0:33:12] White mates.} Rc4 {[%emt 0:09:05]} 42. Rg3 {[%emt 0:00:00]} a5 {[%emt 0:01:38]} 43. Rgxg4 {[%emt 0:00:00]} Rxg4 {[%emt 0:00:14]} 44. Rxg4 {[%emt 0:00:00]} Rc2+ {[%emt 0:00:03]} 45. Kg3 {[%emt 0:00:00]} Rg2+ {[%emt 0:00:42]} 46. Kf4 {[%emt 0:00:00]} Rf2+ {[%emt 0:00:35]} 47. Kg5 {[%emt 0:00:00] Weighted Error Value: White=0.06 (flawless) /Black=0.47} 1-0

[Event "44th Chess Olympiad Open 2022"]
[Site "Chennai"]
[Date "2022.08.09"]
[Round "11.9"]
[White "Maghsoodloo, Parham"]
[Black "Erdos, Viktor"]
[Result "1-0"]
[ECO "E60"]
[WhiteElo "2701"]
[BlackElo "2586"]
[Annotator "TA"]
[PlyCount "57"]
[EventDate "2022.07.29"]
[EventType "team-tourn"]
[EventCountry "IND"]
[SourceTitle "playchess.com"]
[Source "ChessBase"]
[SourceQuality "1"]
[WhiteTeam "Iran"]
[BlackTeam "Hungary"]
[WhiteTeamCountry "IRI"]
[BlackTeamCountry "HUN"]
[TimeControl "40/5400+30:1800+30"]

{[%evp 9,57,20,24,-2,2,8,14,0,1,2,8,0,0,-1,14,0,8,0,22,-1,28,45,44,0,0,0,0,-12,22,9,27,14,4,11,63,70,244,240,343,346,345,327,340,330,551,565,547,556,533,536]} 1. d4 {[%emt 0:00:25]} Nf6 {[%emt 0:00:10]} 2. c4 {[%emt 0:00:15]} g6 {[%emt 0:00:04]} 3. h4 {[%emt 0:00:04]} c6 {[%emt 0:01:38] [#]} 4. Nh3 $146 {[%emt 0:10:31]} ({Predecessor:} 4. Nc3 d5 5. cxd5 cxd5 6. Bf4 Bg7 7. e3 O-O 8. Be2 Nc6 9. h5 Bf5 10. h6 Bh8 {1-0 (33) Ding,L (2799)-Mamedyarov,S (2765) Chess.com INT 2021}) 4... b5 {[%emt 0:20:51]} 5. cxb5 {[%emt 0:12:09]} cxb5 {[%emt 0:00:17]} 6. Nd2 {[%emt 0:05:47] E60: King's Indian: Unusual lines and Fianchetto Variation without Nc3.} Nc6 {[%emt 0:05:05]} 7. e3 {[%emt 0:02:51]} Rb8 {[%emt 0:09:42]} 8. Nf4 {[%emt 0:07:04] The position is equal.} Bh6 {[%emt 0:03:05]} 9. Nd3 {[%emt 0:02:02]} d6 {[%emt 0:03:47]} 10. b3 {[%emt 0:01:19]} O-O {[%emt 0:06:40]} 11. Bb2 {[%emt 0:02:26]} Bf5 {[%emt 0:12:33]} 12. h5 {[%emt 0:07:53][%cal Bh4h5,Bh5h6][%mdl 32] And now hxg6 would win.} Bg7 {[%emt 0:05:20]} (12... Nxh5 $2 13. g4 $18) (12... gxh5 13. d5 Ne5 14. Nxe5 dxe5 15. Bxe5 $11) 13. h6 {[%emt 0:13:05]} Bh8 {[%emt 0:00:08][%cal Oe7e5]} 14. Be2 {[%emt 0:00:27]} (14. Rc1 $5 {[%cal Rc1c6]} Qd7 15. Be2 $14) 14... Re8 {[%emt 0:07:00]} 15. Rc1 {[%emt 0:01:24]} Qb6 {[%emt 0:00:29]} 16. g4 {[%emt 0:05:19]} (16. O-O $14) 16... Bxd3 $11 {[%emt 0:07:43]} (16... Nxg4 17. Bxg4 (17. e4 Bxd4 18. Bxg4 Ne5 $14) 17... Bxd3 18. Bd7 $16) 17. Bxd3 {[%emt 0:00:15]} e5 {[%emt 0:01:40][%cal Re5d4]} 18. g5 {[%emt 0:01:43]} Nd5 {[%emt 0:08:06][%cal Re5d4]} 19. Be4 $1 $36 {[%emt 0:00:44][%mdl 2048] Black is under pressure.} Ncb4 {[%emt 0:04:23][%cal Re5d4]} 20. Bxd5 {[%emt 0:16:20]} (20. Nf3 {is more complex.} f5 21. gxf6 Nxf6 22. Bb1) 20... Nxd5 {[%emt 0:00:05]} 21. dxe5 $1 {[%emt 0:00:03]} ({Much worse is} 21. Qf3 exd4 $1 22. O-O (22. Qxd5 dxe3 23. O-O Bxb2 $17) 22... Qd8 $1 $17) 21... Bxe5 {[%emt 0:01:28]} (21... dxe5 $11 22. Kf1 Rbd8) 22. Bxe5 $14 {[%emt 0:00:07]} Rxe5 {[%emt 0:00:37] [#] This move loses the game for Black.} (22... dxe5 $14 23. Qf3 Rbd8) 23. Nf3 $1 $18 {[%emt 0:00:48]} Rf5 {[%emt 0:00:35] [#]} (23... Nxe3 $142 24. fxe3 Qxe3+ 25. Kf1 Rf5) 24. e4 $1 {[%emt 0:03:45][%csl LRd5,LRf5]} (24. O-O Nc7 $11) 24... Ne3 {[%emt 0:00:17] [#]} 25. Qd4 {[%emt 0:00:07][%csl Gh6][%cal Rd4g7]} Ng2+ {[%emt 0:00:38]} (25... Qxd4 26. Nxd4) 26. Kf1 {[%emt 0:00:12][%csl Gh6][%cal Rd4g7,Be1f1,Bf1e2,Be2e3][%mdl 32] Really sharp!} Ne3+ $2 {[%emt 0:00:34]} (26... Qxd4 27. Nxd4 Rxg5) 27. Ke2 {[%emt 0:00:22][%csl Gh6][%cal Rd4g7] White is clearly winning.} ({Less strong is} 27. fxe3 Qxd4 28. exd4 Rxf3+ 29. Ke2 Rg3 $14) ({Worse is} 27. Qxe3 Qxe3 28. fxe3 Rxf3+ 29. Ke2 Rg3 $11) 27... Qxd4 {[%emt 0:00:34]} 28. Nxd4 {[%emt 0:00:03]} Rxg5 {[%emt 0:00:26]} 29. Kxe3 {[%emt 0:00:10] Weighted Error Value: White=0.08 (flawless) /Black=0.39} 1-0